[Event "*** Titled Tuesday Blitz"]
[Site "Chess.com"]
[Date "2019.08.06"]
[Round "4"]
[White "GianmarcoVaR"]
[Black "Marcus_Harvey"]
[Result "1/2-1/2"]
[WhiteElo "2569"]
[BlackElo "2766"]
[TimeControl "180+2"]
[EndTime "13:52:20 PDT"]
[Termination "Game drawn by repetition"]

1. c4 {[%clk 0:02:41.2]} 1... Nf6 {[%clk 0:02:56.6]} 2. g3 {[%clk 0:02:42.2]}
2... g6 {[%clk 0:02:55.3]} 3. Bg2 {[%clk 0:02:43.8]} 3... Bg7 {[%clk 0:02:57.2]}
4. Nc3 {[%clk 0:02:44.2]} 4... O-O {[%clk 0:02:59.1]} 5. Nf3 {[%clk 0:02:45.6]}
5... d5 {[%clk 0:02:59.9]} 6. cxd5 {[%clk 0:02:45.5]} 6... Nxd5 {[%clk
0:03:01.8]} 7. O-O {[%clk 0:02:46.8]} 7... c5 {[%clk 0:03:03]} 8. d3 {[%clk
0:02:43.5]} 8... Nc6 {[%clk 0:03:03.8]} 9. Bd2 {[%clk 0:02:44]} 9... b6 {[%clk
0:03:00.8]} 10. Qc1 {[%clk 0:02:40]} 10... Bb7 {[%clk 0:02:51.1]} 11. Bh6 {[%clk
0:02:39.3]} 11... Nf6 {[%clk 0:02:38]} 12. Bxg7 {[%clk 0:02:15.1]} 12... Kxg7
{[%clk 0:02:39.9]} 13. Nd2 {[%clk 0:01:43.6]} 13... e5 {[%clk 0:02:28.3]} 14.
Rd1 {[%clk 0:01:17.9]} 14... Qe7 {[%clk 0:02:23.4]} 15. Nde4 {[%clk 0:01:13.2]}
15... Nxe4 {[%clk 0:02:10.2]} 16. dxe4 {[%clk 0:01:13.9]} 16... Rfd8 {[%clk
0:02:05]} 17. Nd5 {[%clk 0:01:13.5]} 17... Qf8 {[%clk 0:01:59.7]} 18. e3 {[%clk
0:01:12]} 18... Rd6 {[%clk 0:01:57.1]} 19. Qc3 {[%clk 0:01:12.9]} 19... Rad8
{[%clk 0:01:57]} 20. Rd2 {[%clk 0:01:12.2]} 20... f6 {[%clk 0:01:55.4]} 21. Rad1
{[%clk 0:01:13.2]} 21... Qf7 {[%clk 0:01:43.7]} 22. a3 {[%clk 0:01:08.6]} 22...
Ne7 {[%clk 0:01:42.3]} 23. b4 {[%clk 0:00:38]} 23... Nxd5 {[%clk 0:01:29.2]} 24.
exd5 {[%clk 0:00:39.1]} 24... cxb4 {[%clk 0:01:30]} 25. axb4 {[%clk 0:00:40.1]}
25... Qd7 {[%clk 0:01:06.2]} 26. e4 {[%clk 0:00:34.6]} 26... Rc8 {[%clk
0:01:02.2]} 27. Qa1 {[%clk 0:00:35.3]} 27... a6 {[%clk 0:01:00.5]} 28. Rc1
{[%clk 0:00:33.1]} 28... Rxc1+ {[%clk 0:00:51.9]} 29. Qxc1 {[%clk 0:00:34.5]}
29... Qe7 {[%clk 0:00:50.8]} 30. Rc2 {[%clk 0:00:35.2]} 30... f5 {[%clk
0:00:46.6]} 31. exf5 {[%clk 0:00:20.9]} 31... Bxd5 {[%clk 0:00:47.4]} 32. fxg6
{[%clk 0:00:07.9]} 32... Bxg2 {[%clk 0:00:45.6]} 33. Kxg2 {[%clk 0:00:07.1]}
33... hxg6 {[%clk 0:00:44.2]} 34. Rc7 {[%clk 0:00:07.9]} 34... Rd7 {[%clk
0:00:44.6]} 35. Rxd7 {[%clk 0:00:08.1]} 35... Qxd7 {[%clk 0:00:46.1]} 36. Qe3
{[%clk 0:00:09.6]} 36... Qd5+ {[%clk 0:00:41.4]} 37. Kh3 {[%clk 0:00:10.1]}
37... Qd4 {[%clk 0:00:40]} 38. Qg5 {[%clk 0:00:08.8]} 38... Qd7+ {[%clk
0:00:31.1]} 39. g4 {[%clk 0:00:07.6]} 39... Qd6 {[%clk 0:00:25.3]} 40. f3 {[%clk
0:00:06.9]} 40... a5 {[%clk 0:00:26.5]} 41. bxa5 {[%clk 0:00:06.4]} 41... bxa5
{[%clk 0:00:28.4]} 42. Qe3 {[%clk 0:00:05.2]} 42... a4 {[%clk 0:00:29.5]} 43.
Qa7+ {[%clk 0:00:05.8]} 43... Kh6 {[%clk 0:00:23.6]} 44. Qxa4 {[%clk 0:00:07.1]}
44... Qd3 {[%clk 0:00:21.5]} 45. Qe4 {[%clk 0:00:08.1]} 45... Qf1+ {[%clk
0:00:22.7]} 46. Kg3 {[%clk 0:00:06.1]} 46... Qg1+ {[%clk 0:00:24]} 47. Kh3
{[%clk 0:00:07.4]} 47... Qf2 {[%clk 0:00:11.9]} 48. g5+ {[%clk 0:00:05.2]} 48...
Kxg5 {[%clk 0:00:07.7]} 49. Qxe5+ {[%clk 0:00:06.6]} 49... Kh6 {[%clk 0:00:09]}
50. Qh8+ {[%clk 0:00:05.6]} 50... Kg5 {[%clk 0:00:09.8]} 51. Qe5+ {[%clk
0:00:06]} 51... Kh6 {[%clk 0:00:11.1]} 52. Qf4+ {[%clk 0:00:05]} 52... Kg7
{[%clk 0:00:11.7]} 53. Qe5+ {[%clk 0:00:04.6]} 53... Kf7 {[%clk 0:00:13]} 54.
Qf4+ {[%clk 0:00:05.6]} 54... Kg7 {[%clk 0:00:14.2]} 55. Qc7+ {[%clk 0:00:06.7]}
55... Kh6 {[%clk 0:00:14.7]} 56. Qf4+ {[%clk 0:00:07.5]} 56... Kg7 {[%clk
0:00:16]} 1/2-1/2

[Event "*** Titled Tuesday Blitz"]
[Site "Chess.com"]
[Date "2019.08.06"]
[Round "4"]
[White "medalja"]
[Black "Ceejay271"]
[Result "1-0"]
[WhiteElo "2363"]
[BlackElo "2231"]
[TimeControl "180+2"]
[EndTime "13:52:20 PDT"]
[Termination "medalja won by resignation"]

1. d4 {[%clk 0:03:01.9]} 1... Nf6 {[%clk 0:03:00.1]} 2. c4 {[%clk 0:03:02.3]}
2... e6 {[%clk 0:03:01.1]} 3. Nf3 {[%clk 0:03:03.6]} 3... d5 {[%clk 0:02:58.1]}
4. g3 {[%clk 0:03:04.4]} 4... Bb4+ {[%clk 0:02:56.6]} 5. Bd2 {[%clk 0:03:04.3]}
5... Be7 {[%clk 0:02:57.3]} 6. Bg2 {[%clk 0:03:05.4]} 6... O-O {[%clk
0:02:58.9]} 7. O-O {[%clk 0:03:06.6]} 7... Nbd7 {[%clk 0:03:00]} 8. Qc2 {[%clk
0:03:06.3]} 8... Ne4 {[%clk 0:02:59.8]} 9. Bf4 {[%clk 0:02:53.1]} 9... c6 {[%clk
0:03:00.3]} 10. Nc3 {[%clk 0:02:44.3]} 10... f5 {[%clk 0:03:00.3]} 11. Rad1
{[%clk 0:02:42.2]} 11... g5 {[%clk 0:02:43.2]} 12. Bc1 {[%clk 0:02:41.8]} 12...
g4 {[%clk 0:02:43.5]} 13. Ne5 {[%clk 0:02:36.2]} 13... Nd6 {[%clk 0:02:38.5]}
14. cxd5 {[%clk 0:02:30.3]} 14... exd5 {[%clk 0:02:37]} 15. Bh6 {[%clk 0:02:16]}
15... Rf6 {[%clk 0:02:26.7]} 16. Bg5 {[%clk 0:02:15.7]} 16... Rf8 {[%clk
0:02:27.2]} 17. Bh6 {[%clk 0:02:03.4]} 17... Rf6 {[%clk 0:02:27.1]} 18. Bf4
{[%clk 0:02:04.8]} 18... Rf8 {[%clk 0:02:16.2]} 19. Qc1 {[%clk 0:01:57.2]} 19...
Nf6 {[%clk 0:02:12.6]} 20. Bh6 {[%clk 0:01:51.4]} 20... Nf7 {[%clk 0:01:38]} 21.
Bxf8 {[%clk 0:01:43.3]} 21... Bxf8 {[%clk 0:01:38.7]} 22. f3 {[%clk 0:01:40.5]}
22... Bh6 {[%clk 0:01:38.1]} 23. Qc2 {[%clk 0:01:18.5]} 23... Be3+ {[%clk
0:01:32.3]} 24. Kh1 {[%clk 0:01:19]} 24... Nd6 {[%clk 0:01:19.1]} 25. Qd3 {[%clk
0:01:12]} 25... f4 {[%clk 0:01:17.6]} 26. fxg4 {[%clk 0:01:06.7]} 26... Bxg4
{[%clk 0:01:07.6]} 27. gxf4 {[%clk 0:00:51.7]} 27... Nf5 {[%clk 0:00:39.9]} 28.
Nxg4 {[%clk 0:00:46.4]} 28... Nxg4 {[%clk 0:00:39.8]} 29. Qxf5 {[%clk
0:00:47.4]} 29... Nf2+ {[%clk 0:00:41]} 30. Rxf2 {[%clk 0:00:48.4]} 30... Bxf2
{[%clk 0:00:42.9]} 31. Qe6+ {[%clk 0:00:35.9]} 31... Kh8 {[%clk 0:00:41.6]} 32.
Qe5+ {[%clk 0:00:36.8]} 32... Kg8 {[%clk 0:00:42.3]} 33. Rd3 {[%clk 0:00:38]}
33... Qe8 {[%clk 0:00:39]} 34. Qg5+ {[%clk 0:00:21.9]} 34... Kh8 {[%clk
0:00:39]} 35. Qf6+ {[%clk 0:00:20.2]} 35... Kg8 {[%clk 0:00:39.2]} 36. Rh3
{[%clk 0:00:21.1]} 36... Qg6 {[%clk 0:00:36.8]} 37. Qxg6+ {[%clk 0:00:21.3]}
37... hxg6 {[%clk 0:00:37.7]} 38. e3 {[%clk 0:00:21.3]} 38... Re8 {[%clk
0:00:37.3]} 39. Nd1 {[%clk 0:00:22.7]} 39... Be1 {[%clk 0:00:35.7]} 40. Bf3
{[%clk 0:00:23.6]} 40... Bd2 {[%clk 0:00:34.2]} 41. Bg4 {[%clk 0:00:23]} 41...
Kg7 {[%clk 0:00:34.5]} 42. Kg2 {[%clk 0:00:24.4]} 42... Re7 {[%clk 0:00:32.4]}
43. Kf2 {[%clk 0:00:25.8]} 43... b6 {[%clk 0:00:33]} 44. Ke2 {[%clk 0:00:26.7]}
44... Bc1 {[%clk 0:00:33.7]} 45. Kd3 {[%clk 0:00:27]} 45... c5 {[%clk
0:00:33.8]} 46. b3 {[%clk 0:00:27.4]} 46... Rc7 {[%clk 0:00:29.3]} 47. Bf3
{[%clk 0:00:27.5]} 47... c4+ {[%clk 0:00:28.5]} 48. bxc4 {[%clk 0:00:28.9]}
48... dxc4+ {[%clk 0:00:29.4]} 49. Kc2 {[%clk 0:00:30]} 49... Ba3 {[%clk
0:00:29.9]} 50. Rg3 {[%clk 0:00:30.9]} 50... Kf6 {[%clk 0:00:30.1]} 51. Be4
{[%clk 0:00:31.7]} 51... Rg7 {[%clk 0:00:29.3]} 52. h4 {[%clk 0:00:28.5]} 52...
b5 {[%clk 0:00:30]} 53. Nc3 {[%clk 0:00:29.1]} 53... a6 {[%clk 0:00:30]} 54.
Nd5+ {[%clk 0:00:30.1]} 54... Ke6 {[%clk 0:00:29.1]} 55. h5 {[%clk 0:00:31.4]}
55... b4 {[%clk 0:00:24.9]} 56. Rxg6+ {[%clk 0:00:23.9]} 56... Rxg6 {[%clk
0:00:25.6]} 57. hxg6 {[%clk 0:00:25.8]} 57... a5 {[%clk 0:00:26.7]} 58. Nb6
{[%clk 0:00:22.8]} 58... c3 {[%clk 0:00:22.8]} 59. f5+ {[%clk 0:00:20.9]} 59...
Kf6 {[%clk 0:00:23.8]} 60. Nd7+ {[%clk 0:00:21.7]} 60... Ke7 {[%clk 0:00:24.2]}
61. f6+ {[%clk 0:00:21.8]} 61... Kxd7 {[%clk 0:00:24.6]} 62. g7 {[%clk
0:00:23.2]} 1-0

[Event "*** Titled Tuesday Blitz"]
[Site "Chess.com"]
[Date "2019.08.06"]
[Round "4"]
[White "cancrushyou"]
[Black "LastHeroJr"]
[Result "1-0"]
[WhiteElo "2507"]
[BlackElo "2512"]
[TimeControl "180+2"]
[EndTime "13:52:21 PDT"]
[Termination "cancrushyou won by resignation"]

1. Nf3 {[%clk 0:03:01.4]} 1... Nf6 {[%clk 0:03:00.3]} 2. e3 {[%clk 0:03:01.6]}
2... g6 {[%clk 0:03:01.3]} 3. c4 {[%clk 0:03:01.3]} 3... Bg7 {[%clk 0:03:02.4]}
4. Nc3 {[%clk 0:03:01.4]} 4... O-O {[%clk 0:03:03.2]} 5. Be2 {[%clk 0:03:02.7]}
5... d6 {[%clk 0:03:03.2]} 6. O-O {[%clk 0:03:03.5]} 6... e5 {[%clk 0:03:04]} 7.
d4 {[%clk 0:03:04.3]} 7... e4 {[%clk 0:03:04.3]} 8. Nd2 {[%clk 0:03:05.3]} 8...
Re8 {[%clk 0:03:04.4]} 9. Qc2 {[%clk 0:03:05.5]} 9... Bf5 {[%clk 0:03:04.9]} 10.
b4 {[%clk 0:03:05.2]} 10... Nbd7 {[%clk 0:03:04]} 11. Bb2 {[%clk 0:03:03.7]}
11... h5 {[%clk 0:03:04]} 12. a4 {[%clk 0:02:59.7]} 12... Nf8 {[%clk 0:03:04.4]}
13. Nd5 {[%clk 0:03:00.5]} 13... Nxd5 {[%clk 0:02:53.8]} 14. cxd5 {[%clk
0:03:02.4]} 14... h4 {[%clk 0:02:50.8]} 15. h3 {[%clk 0:02:59.3]} 15... Nh7
{[%clk 0:02:50.5]} 16. Rfc1 {[%clk 0:02:53.2]} 16... Rc8 {[%clk 0:02:51.3]} 17.
Qd1 {[%clk 0:02:29.9]} 17... Nf6 {[%clk 0:02:48.7]} 18. Qb3 {[%clk 0:02:18.3]}
18... g5 {[%clk 0:02:41.6]} 19. Nc4 {[%clk 0:02:13.6]} 19... g4 {[%clk 0:02:41]}
20. hxg4 {[%clk 0:02:12.5]} 20... Bxg4 {[%clk 0:02:29.1]} 21. Qd1 {[%clk
0:01:23.6]} 21... Bxe2 {[%clk 0:02:21.8]} 22. Qxe2 {[%clk 0:01:25.5]} 22... Nxd5
{[%clk 0:02:23.7]} 23. Na5 {[%clk 0:01:16.4]} 23... Rb8 {[%clk 0:02:14.5]} 24.
Qg4 {[%clk 0:00:55.9]} 24... Kf8 {[%clk 0:01:00]} 25. b5 {[%clk 0:00:48.7]}
25... Nb4 {[%clk 0:00:27.2]} 26. Bc3 {[%clk 0:00:47.3]} 26... Nd3 {[%clk
0:00:28.2]} 27. Rf1 {[%clk 0:00:46.6]} 27... Qf6 {[%clk 0:00:26.6]} 28. f3
{[%clk 0:00:39.9]} 28... Qe6 {[%clk 0:00:14.7]} 29. Qxh4 {[%clk 0:00:37.6]}
29... Bf6 {[%clk 0:00:11.4]} 30. Qh6+ {[%clk 0:00:35.2]} 30... Bg7 {[%clk
0:00:12.6]} 31. Qxg7+ {[%clk 0:00:27.5]} 31... Kxg7 {[%clk 0:00:12.3]} 32. d5+
{[%clk 0:00:28.9]} 32... Qe5 {[%clk 0:00:12.6]} 33. Bxe5+ {[%clk 0:00:27.7]}
33... Rxe5 {[%clk 0:00:14.5]} 34. Ra3 {[%clk 0:00:20.8]} 34... Nc5 {[%clk
0:00:12]} 35. Nc4 {[%clk 0:00:09.7]} 35... Rxd5 {[%clk 0:00:12.9]} 36. fxe4
{[%clk 0:00:11.2]} 36... Nxe4 {[%clk 0:00:14.2]} 37. Rf4 {[%clk 0:00:12.6]}
37... Nf6 {[%clk 0:00:15.4]} 38. e4 {[%clk 0:00:12.3]} 38... Rd1+ {[%clk
0:00:16.6]} 39. Kf2 {[%clk 0:00:13.1]} 39... Re8 {[%clk 0:00:16.9]} 40. Rg3+
{[%clk 0:00:14.1]} 40... Kf8 {[%clk 0:00:17.9]} 41. Rxf6 {[%clk 0:00:15.4]}
41... Rd4 {[%clk 0:00:19]} 42. Ne3 {[%clk 0:00:15.8]} 42... Rdxe4 {[%clk
0:00:19.9]} 43. Nf5 {[%clk 0:00:17]} 43... R8e5 {[%clk 0:00:20.2]} 44. Nh6
{[%clk 0:00:15.4]} 44... Ke7 {[%clk 0:00:19.2]} 45. Rxf7+ {[%clk 0:00:15.9]}
45... Ke6 {[%clk 0:00:20.9]} 46. Rg6+ {[%clk 0:00:16.5]} 46... Kd5 {[%clk
0:00:22]} 47. Rf3 {[%clk 0:00:14]} 47... Rxa4 {[%clk 0:00:22.5]} 48. Nf7 {[%clk
0:00:14.8]} 48... Re7 {[%clk 0:00:20.9]} 49. Rg5+ {[%clk 0:00:14.8]} 49... Kc4
{[%clk 0:00:21.9]} 50. Rf4+ {[%clk 0:00:15.9]} 50... Kb3 {[%clk 0:00:18.3]} 51.
Rg3+ {[%clk 0:00:17]} 51... Kb2 {[%clk 0:00:19.3]} 52. Rxa4 {[%clk 0:00:18.5]}
52... Rxf7+ {[%clk 0:00:20.8]} 53. Rf3 {[%clk 0:00:20]} 1-0

[Event "*** Titled Tuesday Blitz"]
[Site "Chess.com"]
[Date "2019.08.06"]
[Round "4"]
[White "Genghis_K"]
[Black "JonahWillow"]
[Result "1-0"]
[WhiteElo "2878"]
[BlackElo "2643"]
[TimeControl "180+2"]
[EndTime "13:52:27 PDT"]
[Termination "Genghis_K won on time"]

1. e4 {[%clk 0:03:01.9]} 1... c5 {[%clk 0:03:00.4]} 2. Nf3 {[%clk 0:03:02.5]}
2... e6 {[%clk 0:03:01]} 3. g3 {[%clk 0:03:01.6]} 3... d5 {[%clk 0:03:01.6]} 4.
exd5 {[%clk 0:03:02]} 4... exd5 {[%clk 0:03:03.5]} 5. d4 {[%clk 0:03:02.7]} 5...
Nf6 {[%clk 0:03:04.4]} 6. Bg2 {[%clk 0:03:03.2]} 6... Be7 {[%clk 0:03:05.5]} 7.
O-O {[%clk 0:03:04.3]} 7... O-O {[%clk 0:03:07.2]} 8. dxc5 {[%clk 0:03:04.5]}
8... Bxc5 {[%clk 0:03:09.1]} 9. a3 {[%clk 0:03:03.9]} 9... Nc6 {[%clk
0:03:00.8]} 10. Nc3 {[%clk 0:03:04.2]} 10... h6 {[%clk 0:02:57.2]} 11. b4 {[%clk
0:03:04]} 11... Bb6 {[%clk 0:02:56.4]} 12. Bb2 {[%clk 0:03:02.9]} 12... Bg4
{[%clk 0:02:55.3]} 13. h3 {[%clk 0:03:00.3]} 13... Bh5 {[%clk 0:02:49.1]} 14. g4
{[%clk 0:03:01]} 14... Bg6 {[%clk 0:02:49.9]} 15. Nh4 {[%clk 0:03:02.7]} 15...
Be4 {[%clk 0:02:46.1]} 16. Nxe4 {[%clk 0:03:01.5]} 16... dxe4 {[%clk 0:02:41]}
17. Nf5 {[%clk 0:02:55.7]} 17... Re8 {[%clk 0:02:08.5]} 18. Qxd8 {[%clk
0:02:17.5]} 18... Raxd8 {[%clk 0:02:02.9]} 19. Rfd1 {[%clk 0:02:04.7]} 19... Ne5
{[%clk 0:01:47.9]} 20. Nd6 {[%clk 0:01:54.7]} 20... Rxd6 {[%clk 0:01:31.7]} 21.
Rxd6 {[%clk 0:01:50.8]} 21... Nc4 {[%clk 0:01:33.1]} 22. Rxf6 {[%clk 0:01:27.9]}
22... gxf6 {[%clk 0:01:26.9]} 23. Bxf6 {[%clk 0:01:27.6]} 23... e3 {[%clk
0:01:28.4]} 24. fxe3 {[%clk 0:01:27]} 24... Nxe3 {[%clk 0:01:28.6]} 25. Kh1
{[%clk 0:01:19.1]} 25... Nxg2 {[%clk 0:01:28.4]} 26. Kxg2 {[%clk 0:01:21]} 26...
Re2+ {[%clk 0:01:29.5]} 27. Kg3 {[%clk 0:01:19.2]} 27... Rxc2 {[%clk 0:01:22.7]}
28. Rd1 {[%clk 0:01:20.5]} 28... Kh7 {[%clk 0:01:20]} 29. Rd7 {[%clk 0:01:15.3]}
29... Kg6 {[%clk 0:01:20.9]} 30. Be5 {[%clk 0:01:16.6]} 30... Ra2 {[%clk
0:01:16.9]} 31. h4 {[%clk 0:01:13.1]} 31... Rxa3+ {[%clk 0:01:10.2]} 32. Kf4
{[%clk 0:01:14.6]} 32... Be3+ {[%clk 0:00:55.8]} 33. Ke4 {[%clk 0:01:15.5]}
33... Bc1 {[%clk 0:00:49.9]} 34. Rd6+ {[%clk 0:00:52.1]} 34... Kh7 {[%clk
0:00:48.3]} 35. h5 {[%clk 0:00:43.7]} 35... Re3+ {[%clk 0:00:35.4]} 36. Kd4
{[%clk 0:00:44.7]} 36... Re1 {[%clk 0:00:35.9]} 37. Bg3 {[%clk 0:00:11.4]} 37...
Rd1+ {[%clk 0:00:33.8]} 38. Kc5 {[%clk 0:00:12.9]} 38... Be3+ {[%clk 0:00:33.8]}
39. Kb5 {[%clk 0:00:13.5]} 39... a6+ {[%clk 0:00:23.3]} 40. Kc4 {[%clk 0:00:14]}
40... b5+ {[%clk 0:00:09]} 41. Kc3 {[%clk 0:00:13.2]} 41... Rxd6 {[%clk
0:00:09.6]} 42. Bxd6 {[%clk 0:00:15.1]} 42... Kg7 {[%clk 0:00:10.8]} 43. Kd3
{[%clk 0:00:16.5]} 43... Bg1 {[%clk 0:00:10.1]} 44. Ke4 {[%clk 0:00:17.8]} 44...
f6 {[%clk 0:00:09.8]} 45. Kd5 {[%clk 0:00:16.7]} 45... Kf7 {[%clk 0:00:11.1]}
46. Bf4 {[%clk 0:00:17.4]} 46... f5 {[%clk 0:00:10.6]} 47. gxf5 {[%clk
0:00:13.6]} 47... Kf6 {[%clk 0:00:11.9]} 48. Ke4 {[%clk 0:00:14.9]} 48... Bf2
{[%clk 0:00:09.7]} 49. Bxh6 {[%clk 0:00:14.4]} 49... Be1 {[%clk 0:00:10.7]} 50.
Bf8 {[%clk 0:00:15.5]} 50... Kf7 {[%clk 0:00:10.2]} 51. Bc5 {[%clk 0:00:16.8]}
51... Kg7 {[%clk 0:00:10.5]} 52. Ke5 {[%clk 0:00:11]} 52... Kh6 {[%clk
0:00:11.3]} 53. f6 {[%clk 0:00:11.3]} 53... Bc3+ {[%clk 0:00:06]} 54. Ke6 {[%clk
0:00:12.5]} 54... a5 {[%clk 0:00:05.4]} 55. bxa5 {[%clk 0:00:13.3]} 1-0

[Event "*** Titled Tuesday Blitz"]
[Site "Chess.com"]
[Date "2019.08.06"]
[Round "4"]
[White "ClockworkKubrick"]
[Black "Saloni1299"]
[Result "0-1"]
[WhiteElo "2177"]
[BlackElo "2019"]
[TimeControl "180+2"]
[EndTime "13:52:33 PDT"]
[Termination "Saloni1299 won by resignation"]

1. e4 {[%clk 0:03:01.9]} 1... e6 {[%clk 0:02:59.6]} 2. Nc3 {[%clk 0:03:02]} 2...
d5 {[%clk 0:02:59.4]} 3. Nf3 {[%clk 0:03:02.5]} 3... Nf6 {[%clk 0:02:56]} 4. e5
{[%clk 0:02:55.9]} 4... Nfd7 {[%clk 0:02:55.5]} 5. d4 {[%clk 0:02:56.8]} 5... c5
{[%clk 0:02:56.5]} 6. Be3 {[%clk 0:02:55.8]} 6... Nc6 {[%clk 0:02:56.9]} 7. Bb5
{[%clk 0:02:54.6]} 7... Qb6 {[%clk 0:02:53.2]} 8. Bxc6 {[%clk 0:02:54.8]} 8...
bxc6 {[%clk 0:02:53.9]} 9. dxc5 {[%clk 0:02:51.4]} 9... Bxc5 {[%clk 0:02:51.1]}
10. Bxc5 {[%clk 0:02:51.6]} 10... Nxc5 {[%clk 0:02:48.5]} 11. O-O {[%clk
0:02:49.5]} 11... Qxb2 {[%clk 0:02:46.9]} 12. Qd4 {[%clk 0:02:46.1]} 12... Nd7
{[%clk 0:02:42.2]} 13. Rab1 {[%clk 0:02:34.6]} 13... Qxc2 {[%clk 0:02:41.7]} 14.
Rfc1 {[%clk 0:02:32.6]} 14... Qg6 {[%clk 0:02:41.6]} 15. Na4 {[%clk 0:02:25.7]}
15... O-O {[%clk 0:02:35.8]} 16. Rb3 {[%clk 0:02:23.4]} 16... Ba6 {[%clk
0:02:20.2]} 17. Rxc6 {[%clk 0:02:18.9]} 17... Bc4 {[%clk 0:02:20.9]} 18. Rb2
{[%clk 0:02:15.3]} 18... Rfb8 {[%clk 0:02:13.1]} 19. Rxb8+ {[%clk 0:02:09.3]}
19... Rxb8 {[%clk 0:02:14.1]} 20. h3 {[%clk 0:02:07.7]} 20... Bb5 {[%clk
0:02:15.1]} 21. Rc7 {[%clk 0:02:00.5]} 21... Qe4 {[%clk 0:02:08.5]} 22. Qxa7
{[%clk 0:01:56.8]} 22... Qxa4 {[%clk 0:01:58.1]} 23. Rxd7 {[%clk 0:01:52.4]}
23... Ra8 {[%clk 0:01:37.6]} 24. Qxa4 {[%clk 0:01:47.5]} 24... Bxa4 {[%clk
0:01:38.5]} 25. Rc7 {[%clk 0:01:38.9]} 25... Be8 {[%clk 0:01:39.2]} 26. Nd4
{[%clk 0:01:38]} 26... Rxa2 {[%clk 0:01:30.8]} 27. Rc8 {[%clk 0:01:38.5]} 27...
Kf8 {[%clk 0:01:32]} 28. Nb5 {[%clk 0:01:39.3]} 28... Ke7 {[%clk 0:01:27.9]} 29.
Rc7+ {[%clk 0:01:26.5]} 29... Kd8 {[%clk 0:01:26.5]} 30. Rc5 {[%clk 0:01:07.8]}
30... Ra5 {[%clk 0:01:20.9]} 31. Nd6 {[%clk 0:01:00.8]} 31... Rxc5 {[%clk
0:01:21.4]} 32. Nb7+ {[%clk 0:01:02.1]} 32... Kc7 {[%clk 0:01:20.8]} 33. Nxc5
{[%clk 0:01:03.3]} 33... Kc6 {[%clk 0:01:16.7]} 34. Nd3 {[%clk 0:01:02.9]} 34...
Kb5 {[%clk 0:01:17]} 35. Kf1 {[%clk 0:01:04.1]} 35... Kc4 {[%clk 0:01:16.6]} 36.
Ke2 {[%clk 0:01:05.3]} 36... Kd4 {[%clk 0:01:17.7]} 37. Kd2 {[%clk 0:00:49.3]}
37... Bb5 {[%clk 0:01:16.9]} 38. Nf4 {[%clk 0:00:45.5]} 38... Kxe5 {[%clk
0:01:16.8]} 39. g3 {[%clk 0:00:46.6]} 39... Ke4 {[%clk 0:01:06.8]} 40. Nh5
{[%clk 0:00:42.7]} 40... Kf3 {[%clk 0:01:02.5]} 41. Ke1 {[%clk 0:00:43.4]} 41...
g6 {[%clk 0:01:01]} 42. Nf6 {[%clk 0:00:40.9]} 42... h5 {[%clk 0:01:00.4]} 43.
h4 {[%clk 0:00:41.8]} 43... d4 {[%clk 0:00:57]} 44. Nh7 {[%clk 0:00:39.1]} 44...
Be8 {[%clk 0:00:43.2]} 45. Ng5+ {[%clk 0:00:40.3]} 45... Kg4 {[%clk 0:00:39.4]}
46. Kd2 {[%clk 0:00:39.5]} 46... Kf5 {[%clk 0:00:40.5]} 47. Kd3 {[%clk 0:00:36]}
47... f6 {[%clk 0:00:38.2]} 48. Nf3 {[%clk 0:00:35]} 48... e5 {[%clk 0:00:37.8]}
49. Nd2 {[%clk 0:00:30.7]} 49... Bb5+ {[%clk 0:00:38.8]} 50. Kc2 {[%clk
0:00:31.8]} 50... e4 {[%clk 0:00:37.4]} 51. Nb3 {[%clk 0:00:31.4]} 51... Ke5
{[%clk 0:00:38.5]} 52. Kd2 {[%clk 0:00:32.3]} 52... f5 {[%clk 0:00:39.1]} 53.
Nc5 {[%clk 0:00:33.1]} 53... f4 {[%clk 0:00:36.6]} 54. gxf4+ {[%clk 0:00:32.4]}
54... Kxf4 {[%clk 0:00:38.1]} 55. Ne6+ {[%clk 0:00:33.8]} 55... Kf3 {[%clk
0:00:28.7]} 56. Nxd4+ {[%clk 0:00:33.3]} 56... Kxf2 {[%clk 0:00:30]} 57. Nxb5
{[%clk 0:00:34.6]} 57... e3+ {[%clk 0:00:31.2]} 58. Kd3 {[%clk 0:00:28.2]} 58...
e2 {[%clk 0:00:32.4]} 59. Nc3 {[%clk 0:00:28.8]} 59... e1=Q {[%clk 0:00:32.7]}
60. Ne4+ {[%clk 0:00:30.3]} 60... Kg2 {[%clk 0:00:28.9]} 61. Ng5 {[%clk
0:00:29.4]} 61... Qxh4 {[%clk 0:00:29.6]} 62. Ne4 {[%clk 0:00:30.4]} 62... Qxe4+
{[%clk 0:00:28.1]} 63. Kxe4 {[%clk 0:00:31.3]} 63... h4 {[%clk 0:00:29.8]} 64.
Kf4 {[%clk 0:00:33]} 64... h3 {[%clk 0:00:31.4]} 0-1